[Event "Titled Tuesday Blitz November 2 2021"]
[White "Tsydypov, Zhamsaran"]
[Black "Nyudleev, Dolgan"]
[WhiteFideId "4108566"]
[BlackFideId "4198360"]
[WhiteElo "2649"]
[BlackElo "2354"]
[Result "1-0"]
[Round "07"]
[TimeControl "180+1"]
[Date "2021.11.02"]
[WhiteClock "0:01:12"]
[BlackClock "0:00:02"]

1. e4 {[%clk 0:03:00]}  c5 {[%clk 0:02:58]} 2. Nf3 {[%clk 0:03:00]}  e6 {[%clk 0:02:59]} 3. d4 {[%clk 0:03:00]}  cxd4 {[%clk 0:02:59]} 4. Nxd4 {[%clk 0:03:00]}  Qb6 {[%clk 0:03:00]} 5. Nb3 {[%clk 0:03:00]}  Nc6 {[%clk 0:03:00]} 6. Nc3 {[%clk 0:02:59]}  Nf6 {[%clk 0:03:00]} 7. a3 {[%clk 0:02:59]}  Be7 {[%clk 0:02:59]} 8. Be3 {[%clk 0:02:59]}  Qc7 {[%clk 0:03:00]} 9. f4 {[%clk 0:02:59]}  d6 {[%clk 0:02:59]} 10. Qf3 {[%clk 0:02:57]}  a6 {[%clk 0:02:59]} 11. g4 {[%clk 0:02:57]}  b5 {[%clk 0:02:59]} 12. g5 {[%clk 0:02:57]}  Nd7 {[%clk 0:03:00]} 13. O-O-O {[%clk 0:02:56]}  Bb7 {[%clk 0:03:00]} 14. f5 {[%clk 0:02:56]}  Nde5 {[%clk 0:02:50]} 15. Qg3 {[%clk 0:02:55]}  b4 {[%clk 0:02:40]} 16. axb4 {[%clk 0:02:54]}  Nxb4 {[%clk 0:02:40]} 17. Rd4 {[%clk 0:02:55]}  Nbc6 {[%clk 0:02:32]} 18. Ra4 {[%clk 0:02:55]}  Rc8 {[%clk 0:02:18]} 19. Bh3 {[%clk 0:02:49]}  Nd8 {[%clk 0:02:18]} 20. Rf1 {[%clk 0:02:48]}  exf5 {[%clk 0:02:06]} 21. exf5 {[%clk 0:02:46]}  f6 {[%clk 0:02:06]} 22. Nd4 {[%clk 0:02:32]}  O-O {[%clk 0:02:00]} 23. Bg2 {[%clk 0:02:21]}  Qd7 {[%clk 0:01:51]} 24. Rb4 {[%clk 0:02:07]}  Bxg2 {[%clk 0:01:48]} 25. Qxg2 {[%clk 0:02:07]}  d5 {[%clk 0:01:33]} 26. Rb3 {[%clk 0:01:57]}  Rc5 {[%clk 0:00:14]} 27. Ne6 {[%clk 0:01:51]}  Nxe6 {[%clk 0:00:13]} 28. fxe6 {[%clk 0:01:51]}  Qxe6 {[%clk 0:00:13]} 29. Bxc5 {[%clk 0:01:52]}  Bxc5 {[%clk 0:00:13]} 30. Qxd5 {[%clk 0:01:52]}  Qxd5 {[%clk 0:00:12]} 31. Nxd5 {[%clk 0:01:52]}  fxg5 {[%clk 0:00:12]} 32. Rxf8+ {[%clk 0:01:51]}  Kxf8 {[%clk 0:00:12]} 33. Nc7 {[%clk 0:01:47]}  Ke7 {[%clk 0:00:07]} 34. Nxa6 {[%clk 0:01:41]}  Bd6 {[%clk 0:00:06]} 35. Rb7+ {[%clk 0:01:39]}  Kf6 {[%clk 0:00:05]} 36. Rb6 {[%clk 0:01:39]}  Ke7 {[%clk 0:00:04]} 37. h3 {[%clk 0:01:35]}  h5 {[%clk 0:00:04]} 38. Kd1 {[%clk 0:01:35]}  g4 {[%clk 0:00:04]} 39. h4 {[%clk 0:01:22]}  g3 {[%clk 0:00:03]} 40. Ke2 {[%clk 0:01:21]}  g2 {[%clk 0:00:03]} 41. Kf2 {[%clk 0:01:20]}  Nf3 {[%clk 0:00:03]} 42. Kxg2 {[%clk 0:01:19]}  Nxh4+ {[%clk 0:00:03]} 43. Kf1 {[%clk 0:01:19]}  g5 {[%clk 0:00:03]} 44. c4 {[%clk 0:01:19]}  Nf3 {[%clk 0:00:03]} 45. c5 {[%clk 0:01:19]}  Be5 {[%clk 0:00:03]} 46. c6 {[%clk 0:01:16]}  h4 {[%clk 0:00:03]} 47. Rb7+ {[%clk 0:01:14]}  Kd8 {[%clk 0:00:03]} 48. Rd7+ {[%clk 0:01:12]}  Kc8 {[%clk 0:00:03]} 49. Rf7 {[%clk 0:01:12]}  Kd8 {[%clk 0:00:03]} 50. Rxf3 {[%clk 0:01:11]}  g4 {[%clk 0:00:04]} 51. Rd3+ {[%clk 0:01:11]}  Kc8 {[%clk 0:00:03]} 52. Re3 {[%clk 0:01:11]}  Bf6 {[%clk 0:00:01]} 53. Re8+ {[%clk 0:01:11]}  Bd8 {[%clk 0:00:02]} 54. c7 {[%clk 0:01:12]} 1-0


[Site "https://www.chess.com"]

[Event "Titled Tuesday Blitz November 2 2021"]
[White "Abdrlauf, Elham"]
[Black "Tsydypov, Zhamsaran"]
[WhiteFideId "1533533"]
[BlackFideId "4108566"]
[WhiteElo "2362"]
[BlackElo "2649"]
[Result "1-0"]
[Round "08"]
[TimeControl "180+1"]
[Date "2021.11.02"]
[WhiteClock "0:02:28"]
[BlackClock "0:00:56"]

1. e4 {[%clk 0:02:59]}  c5 {[%clk 0:02:59]} 2. Nf3 {[%clk 0:02:59]}  d6 {[%clk 0:02:58]} 3. d4 {[%clk 0:03:00]}  cxd4 {[%clk 0:02:58]} 4. Nxd4 {[%clk 0:03:01]}  Nf6 {[%clk 0:02:59]} 5. Nc3 {[%clk 0:03:01]}  a6 {[%clk 0:03:00]} 6. Bc4 {[%clk 0:03:02]}  e6 {[%clk 0:03:00]} 7. Bb3 {[%clk 0:03:02]}  Nbd7 {[%clk 0:03:00]} 8. f4 {[%clk 0:03:02]}  Nc5 {[%clk 0:03:00]} 9. e5 {[%clk 0:03:02]}  dxe5 {[%clk 0:02:56]} 10. fxe5 {[%clk 0:03:03]}  Nfd7 {[%clk 0:02:55]} 11. Qh5 {[%clk 0:03:02]}  g6 {[%clk 0:02:53]} 12. Qh3 {[%clk 0:03:02]}  Nxe5 {[%clk 0:02:51]} 13. Be3 {[%clk 0:03:01]}  Nxb3 {[%clk 0:02:51]} 14. axb3 {[%clk 0:03:01]}  Bg7 {[%clk 0:02:43]} 15. O-O-O {[%clk 0:02:57]}  Qa5 {[%clk 0:02:39]} 16. Kb1 {[%clk 0:02:57]}  O-O {[%clk 0:02:38]} 17. Bh6 {[%clk 0:02:57]}  Bxh6 {[%clk 0:01:59]} 18. Qxh6 {[%clk 0:02:58]}  Ng4 {[%clk 0:01:59]} 19. Qh4 {[%clk 0:02:54]}  e5 {[%clk 0:01:55]} 20. Nf3 {[%clk 0:02:51]}  Bf5 {[%clk 0:01:54]} 21. Nd5 {[%clk 0:02:44]}  Rac8 {[%clk 0:01:35]} 22. Ne7+ {[%clk 0:02:44]}  Kg7 {[%clk 0:01:35]} 23. Nxf5+ {[%clk 0:02:43]}  gxf5 {[%clk 0:01:32]} 24. h3 {[%clk 0:02:40]}  Ne3 {[%clk 0:01:03]} 25. Qg5+ {[%clk 0:02:40]}  Kh8 {[%clk 0:01:03]} 26. Qf6+ {[%clk 0:02:40]}  Kg8 {[%clk 0:01:02]} 27. Qg5+ {[%clk 0:02:40]}  Kh8 {[%clk 0:01:03]} 28. Qxe3 {[%clk 0:02:41]}  f6 {[%clk 0:01:00]} 29. Rd7 {[%clk 0:02:34]}  Rc7 {[%clk 0:00:56]} 30. b4 {[%clk 0:02:28]} 1-0


[Site "https://www.chess.com"]

[Event "Titled Tuesday Blitz November 2 2021"]
[White "Babazada, Khazar"]
[Black "Siva Mahadevan"]
[WhiteFideId "13413554"]
[BlackFideId "25043153"]
[WhiteElo "2302"]
[BlackElo "2203"]
[Result "0-1"]
[Round "08"]
[TimeControl "180+1"]
[Date "2021.11.02"]
[WhiteClock "0:02:10"]
[BlackClock "0:02:35"]

1. e4 {[%clk 0:03:00]}  c5 {[%clk 0:02:59]} 2. Nf3 {[%clk 0:03:00]}  Nc6 {[%clk 0:03:00]} 3. d4 {[%clk 0:03:00]}  cxd4 {[%clk 0:03:01]} 4. Nxd4 {[%clk 0:03:01]}  Nf6 {[%clk 0:03:01]} 5. Nc3 {[%clk 0:02:59]}  d6 {[%clk 0:03:02]} 6. Bg5 {[%clk 0:02:58]}  e6 {[%clk 0:03:02]} 7. Qd2 {[%clk 0:02:58]}  a6 {[%clk 0:03:02]} 8. O-O-O {[%clk 0:02:57]}  Bd7 {[%clk 0:03:03]} 9. f4 {[%clk 0:02:54]}  b5 {[%clk 0:03:03]} 10. a3 {[%clk 0:02:53]}  Qb6 {[%clk 0:03:02]} 11. Be2 {[%clk 0:02:36]}  Rc8 {[%clk 0:02:59]} 12. Kb1 {[%clk 0:02:33]}  b4 {[%clk 0:02:41]} 13. axb4 {[%clk 0:02:30]}  Nxb4 {[%clk 0:02:41]} 14. Bxf6 {[%clk 0:02:20]}  gxf6 {[%clk 0:02:41]} 15. Bh5 {[%clk 0:02:10]}  Qa5 {[%clk 0:02:36]} 16. f5 {[%clk 0:02:10]}  Rxc3 {[%clk 0:02:35]} 0-1


[Site "https://www.chess.com"]

[Event "Titled Tuesday Blitz November 2 2021"]
[White "Cunjalo, Faris"]
[Black "Zubov, Alexander"]
[WhiteFideId "14410710"]
[BlackFideId "14109409"]
[WhiteElo "2234"]
[BlackElo "2685"]
[Result "0-1"]
[Round "08"]
[TimeControl "180+1"]
[Date "2021.11.02"]
[WhiteClock "0:00:03"]
[BlackClock "0:00:04"]

1. c4 {[%clk 0:03:00]}  c5 {[%clk 0:02:59]} 2. Nf3 {[%clk 0:02:59]}  g6 {[%clk 0:02:58]} 3. d4 {[%clk 0:02:59]}  cxd4 {[%clk 0:02:57]} 4. Nxd4 {[%clk 0:02:59]}  Nf6 {[%clk 0:02:57]} 5. Nc3 {[%clk 0:02:59]}  d5 {[%clk 0:02:57]} 6. cxd5 {[%clk 0:02:42]}  Nxd5 {[%clk 0:02:56]} 7. Ndb5 {[%clk 0:02:42]}  Nxc3 {[%clk 0:02:56]} 8. Qxd8+ {[%clk 0:02:43]}  Kxd8 {[%clk 0:02:56]} 9. Nxc3 {[%clk 0:02:43]}  Bg7 {[%clk 0:02:56]} 10. Bd2 {[%clk 0:02:34]}  Bd7 {[%clk 0:02:43]} 11. g3 {[%clk 0:02:32]}  Bc6 {[%clk 0:02:41]} 12. f3 {[%clk 0:02:32]}  Nd7 {[%clk 0:02:40]} 13. O-O-O {[%clk 0:02:31]}  Rc8 {[%clk 0:02:37]} 14. Bh3 {[%clk 0:02:31]}  e6 {[%clk 0:02:36]} 15. Bg5+ {[%clk 0:02:13]}  Ke8 {[%clk 0:02:34]} 16. Kb1 {[%clk 0:02:08]}  Bxc3 {[%clk 0:02:18]} 17. bxc3 {[%clk 0:02:08]}  f6 {[%clk 0:02:19]} 18. Bc1 {[%clk 0:02:03]}  Kf7 {[%clk 0:02:17]} 19. Rd6 {[%clk 0:02:00]}  Rhe8 {[%clk 0:02:16]} 20. Rhd1 {[%clk 0:02:01]}  Nb6 {[%clk 0:02:07]} 21. R6d4 {[%clk 0:01:50]}  Ba4 {[%clk 0:01:57]} 22. R1d3 {[%clk 0:01:39]}  Bb5 {[%clk 0:01:56]} 23. Rd2 {[%clk 0:01:25]}  Na4 {[%clk 0:01:23]} 24. Ba3 {[%clk 0:01:11]}  f5 {[%clk 0:00:50]} 25. c4 {[%clk 0:00:37]}  e5 {[%clk 0:00:47]} 26. Rh4 {[%clk 0:00:32]}  Rxc4 {[%clk 0:00:38]} 27. Rxh7+ {[%clk 0:00:33]}  Kf6 {[%clk 0:00:29]} 28. Rxb7 {[%clk 0:00:33]}  Bc6 {[%clk 0:00:20]} 29. Rc7 {[%clk 0:00:24]}  Nc3+ {[%clk 0:00:14]} 30. Ka1 {[%clk 0:00:24]}  Nb5 {[%clk 0:00:14]} 31. Rxc6+ {[%clk 0:00:10]}  Rxc6 {[%clk 0:00:14]} 32. Bb2 {[%clk 0:00:11]}  Ke6 {[%clk 0:00:11]} 33. e4 {[%clk 0:00:11]}  Nd6 {[%clk 0:00:09]} 34. exf5+ {[%clk 0:00:08]}  gxf5 {[%clk 0:00:09]} 35. Re2 {[%clk 0:00:08]}  Nc4 {[%clk 0:00:09]} 36. f4 {[%clk 0:00:06]}  Kf6 {[%clk 0:00:04]} 37. fxe5+ {[%clk 0:00:06]}  Kg6 {[%clk 0:00:04]} 38. Bc3 {[%clk 0:00:04]}  Rd8 {[%clk 0:00:04]} 39. a4 {[%clk 0:00:04]}  Rd3 {[%clk 0:00:05]} 40. e6 {[%clk 0:00:02]}  Rxc3 {[%clk 0:00:03]} 41. e7 {[%clk 0:00:03]}  Nd6 {[%clk 0:00:04]} 42. Re6+ {[%clk 0:00:02]}  Kf7 {[%clk 0:00:04]} 43. Rxd6 {[%clk 0:00:03]}  Rxd6 {[%clk 0:00:04]} 0-1


[Site "https://www.chess.com"]

[Event "Titled Tuesday Blitz November 2 2021"]
[White "De Silva, L M S T"]
[Black "Nesterov, Arseniy"]
[WhiteFideId "9953698"]
[BlackFideId "24198455"]
[WhiteElo "1621"]
[BlackElo "2494"]
[Result "0-1"]
[Round "08"]
[TimeControl "180+1"]
[Date "2021.11.02"]
[WhiteClock "0:01:06"]
[BlackClock "0:00:08"]

1. e4 {[%clk 0:03:00]}  e5 {[%clk 0:02:59]} 2. Nf3 {[%clk 0:03:00]}  Nc6 {[%clk 0:02:59]} 3. Bc4 {[%clk 0:02:58]}  Bc5 {[%clk 0:02:57]} 4. O-O {[%clk 0:02:58]}  Nf6 {[%clk 0:02:57]} 5. d3 {[%clk 0:02:58]}  d6 {[%clk 0:02:57]} 6. c3 {[%clk 0:02:58]}  O-O {[%clk 0:02:57]} 7. Bb3 {[%clk 0:02:57]}  h6 {[%clk 0:02:56]} 8. h3 {[%clk 0:02:57]}  a5 {[%clk 0:02:56]} 9. Nbd2 {[%clk 0:02:58]}  Re8 {[%clk 0:02:55]} 10. Re1 {[%clk 0:02:58]}  Be6 {[%clk 0:02:55]} 11. Bc2 {[%clk 0:02:58]}  Qb8 {[%clk 0:02:51]} 12. Nf1 {[%clk 0:02:57]}  Qa7 {[%clk 0:02:51]} 13. Be3 {[%clk 0:02:58]}  Bxe3 {[%clk 0:02:40]} 14. Nxe3 {[%clk 0:02:59]}  Rad8 {[%clk 0:02:23]} 15. Nh4 {[%clk 0:02:58]}  d5 {[%clk 0:02:20]} 16. Qf3 {[%clk 0:02:58]}  dxe4 {[%clk 0:02:08]} 17. dxe4 {[%clk 0:02:59]}  Ne7 {[%clk 0:02:01]} 18. Bb3 {[%clk 0:02:57]}  Qb6 {[%clk 0:01:44]} 19. Bxe6 {[%clk 0:02:53]}  Qxe6 {[%clk 0:01:44]} 20. Nhf5 {[%clk 0:02:51]}  Nxf5 {[%clk 0:01:44]} 21. Nxf5 {[%clk 0:02:52]}  Kh7 {[%clk 0:01:38]} 22. Rad1 {[%clk 0:02:49]}  Rxd1 {[%clk 0:01:25]} 23. Rxd1 {[%clk 0:02:49]}  Qxa2 {[%clk 0:01:25]} 24. Qg3 {[%clk 0:02:43]}  g6 {[%clk 0:01:24]} 25. Qh4 {[%clk 0:02:42]}  Ng8 {[%clk 0:01:17]} 26. Ne3 {[%clk 0:02:37]}  Qe6 {[%clk 0:01:15]} 27. Nd5 {[%clk 0:02:09]}  c6 {[%clk 0:01:01]} 28. Ne3 {[%clk 0:02:07]}  Nf6 {[%clk 0:00:46]} 29. f3 {[%clk 0:01:56]}  Kg7 {[%clk 0:00:41]} 30. c4 {[%clk 0:01:56]}  Qe7 {[%clk 0:00:37]} 31. Kh1 {[%clk 0:01:50]}  Rd8 {[%clk 0:00:34]} 32. Rf1 {[%clk 0:01:43]}  Rd3 {[%clk 0:00:26]} 33. Ng4 {[%clk 0:01:42]}  h5 {[%clk 0:00:22]} 34. Nxf6 {[%clk 0:01:35]}  Qxf6 {[%clk 0:00:23]} 35. Qf2 {[%clk 0:01:36]}  Qd6 {[%clk 0:00:22]} 36. Qb6 {[%clk 0:01:34]}  Qb4 {[%clk 0:00:21]} 37. Qc7 {[%clk 0:01:33]}  Qxb2 {[%clk 0:00:21]} 38. Qxa5 {[%clk 0:01:30]}  Qd4 {[%clk 0:00:19]} 39. Qc7 {[%clk 0:01:26]}  b5 {[%clk 0:00:14]} 40. cxb5 {[%clk 0:01:26]}  cxb5 {[%clk 0:00:15]} 41. Kh2 {[%clk 0:01:24]}  b4 {[%clk 0:00:13]} 42. Qb7 {[%clk 0:01:18]}  b3 {[%clk 0:00:07]} 43. Rc1 {[%clk 0:01:18]}  b2 {[%clk 0:00:06]} 44. Rc7 {[%clk 0:01:18]}  Rxf3 {[%clk 0:00:06]} 45. gxf3 {[%clk 0:01:15]}  Qf2+ {[%clk 0:00:07]} 46. Kh1 {[%clk 0:01:15]}  Qxf3+ {[%clk 0:00:07]} 47. Kh2 {[%clk 0:01:13]}  Qf2+ {[%clk 0:00:07]} 48. Kh1 {[%clk 0:01:14]}  Qf1+ {[%clk 0:00:08]} 49. Kh2 {[%clk 0:01:14]}  b1=Q {[%clk 0:00:09]} 50. Rxf7+ {[%clk 0:01:14]}  Qxf7 {[%clk 0:00:04]} 51. Qxb1 {[%clk 0:01:15]}  Qf2+ {[%clk 0:00:05]} 52. Kh1 {[%clk 0:01:15]}  h4 {[%clk 0:00:05]} 53. Qb7+ {[%clk 0:01:05]}  Kh6 {[%clk 0:00:05]} 54. Qd5 {[%clk 0:01:04]}  Qf3+ {[%clk 0:00:06]} 55. Kg1 {[%clk 0:01:03]}  Qg3+ {[%clk 0:00:07]} 56. Kf1 {[%clk 0:01:02]}  Qxh3+ {[%clk 0:00:08]} 57. Kg1 {[%clk 0:01:03]}  Qg3+ {[%clk 0:00:08]} 58. Kf1 {[%clk 0:01:04]}  h3 {[%clk 0:00:08]} 59. Qd8 {[%clk 0:01:03]}  Qf4+ {[%clk 0:00:07]} 60. Ke1 {[%clk 0:01:04]}  Qxe4+ {[%clk 0:00:08]} 61. Kf2 {[%clk 0:01:05]}  Qd4+ {[%clk 0:00:08]} 62. Ke2 {[%clk 0:01:06]}  Qxd8 {[%clk 0:00:08]} 0-1


[Site "https://www.chess.com"]

[Event "Titled Tuesday Blitz November 2 2021"]
[White "Demidov, Mikhail"]
[Black "Sviridov, Valery"]
[WhiteFideId "4197143"]
[BlackFideId "4120680"]
[WhiteElo "2527"]
[BlackElo "2454"]
[Result "1-0"]
[Round "08"]
[TimeControl "180+1"]
[Date "2021.11.02"]
[WhiteClock "0:00:04"]
[BlackClock "0:00:04"]

1. Nf3 {[%clk 0:03:00]}  Nf6 {[%clk 0:02:59]} 2. g3 {[%clk 0:03:00]}  d5 {[%clk 0:02:59]} 3. Bg2 {[%clk 0:03:00]}  c6 {[%clk 0:03:00]} 4. O-O {[%clk 0:02:59]}  Bf5 {[%clk 0:02:59]} 5. d3 {[%clk 0:02:58]}  e6 {[%clk 0:02:59]} 6. Nh4 {[%clk 0:02:57]}  Bg4 {[%clk 0:02:59]} 7. h3 {[%clk 0:02:58]}  Bh5 {[%clk 0:02:59]} 8. Qe1 {[%clk 0:02:58]}  Be7 {[%clk 0:02:56]} 9. f4 {[%clk 0:02:53]}  O-O {[%clk 0:02:38]} 10. e4 {[%clk 0:02:46]}  Na6 {[%clk 0:02:25]} 11. Be3 {[%clk 0:02:31]}  Nb4 {[%clk 0:01:53]} 12. Na3 {[%clk 0:02:20]}  Nd7 {[%clk 0:01:52]} 13. Nf3 {[%clk 0:02:16]}  Bg6 {[%clk 0:01:52]} 14. Bf2 {[%clk 0:02:06]}  a5 {[%clk 0:01:48]} 15. Qe2 {[%clk 0:02:04]}  f6 {[%clk 0:01:42]} 16. Rfe1 {[%clk 0:01:45]}  Re8 {[%clk 0:01:38]} 17. c3 {[%clk 0:01:35]}  Na6 {[%clk 0:01:39]} 18. Rad1 {[%clk 0:01:32]}  Nac5 {[%clk 0:01:34]} 19. Nc2 {[%clk 0:01:19]}  Bf8 {[%clk 0:01:32]} 20. Nh4 {[%clk 0:01:12]}  Bf7 {[%clk 0:01:32]} 21. e5 {[%clk 0:01:05]}  fxe5 {[%clk 0:01:21]} 22. fxe5 {[%clk 0:01:05]}  Be7 {[%clk 0:01:21]} 23. d4 {[%clk 0:01:01]}  Na6 {[%clk 0:01:11]} 24. Rf1 {[%clk 0:00:56]}  Rf8 {[%clk 0:01:11]} 25. Nf3 {[%clk 0:00:55]}  Nc7 {[%clk 0:01:11]} 26. Ne3 {[%clk 0:00:53]}  b5 {[%clk 0:01:07]} 27. Ng4 {[%clk 0:00:50]}  Bh5 {[%clk 0:01:06]} 28. Be3 {[%clk 0:00:50]}  c5 {[%clk 0:01:01]} 29. Rf2 {[%clk 0:00:36]}  c4 {[%clk 0:00:58]} 30. Rdf1 {[%clk 0:00:28]}  Bg6 {[%clk 0:00:58]} 31. Ne1 {[%clk 0:00:22]}  Rxf2 {[%clk 0:00:57]} 32. Nxf2 {[%clk 0:00:19]}  b4 {[%clk 0:00:58]} 33. h4 {[%clk 0:00:19]}  Qe8 {[%clk 0:00:50]} 34. Nh3 {[%clk 0:00:19]}  Nb6 {[%clk 0:00:27]} 35. Nf4 {[%clk 0:00:19]}  Bf5 {[%clk 0:00:28]} 36. h5 {[%clk 0:00:18]}  h6 {[%clk 0:00:27]} 37. g4 {[%clk 0:00:18]}  Bh7 {[%clk 0:00:26]} 38. Nh3 {[%clk 0:00:17]}  Rb8 {[%clk 0:00:24]} 39. g5 {[%clk 0:00:17]}  hxg5 {[%clk 0:00:21]} 40. Bxg5 {[%clk 0:00:18]}  bxc3 {[%clk 0:00:18]} 41. bxc3 {[%clk 0:00:18]}  Na4 {[%clk 0:00:19]} 42. Qe3 {[%clk 0:00:15]}  Nb5 {[%clk 0:00:16]} 43. Bxe7 {[%clk 0:00:13]}  Qxe7 {[%clk 0:00:17]} 44. Nf4 {[%clk 0:00:13]}  Naxc3 {[%clk 0:00:17]} 45. Nf3 {[%clk 0:00:13]}  Be4 {[%clk 0:00:16]} 46. Nh2 {[%clk 0:00:12]}  Bxg2 {[%clk 0:00:16]} 47. Kxg2 {[%clk 0:00:13]}  Ne4 {[%clk 0:00:16]} 48. Rb1 {[%clk 0:00:11]}  c3 {[%clk 0:00:15]} 49. Ng6 {[%clk 0:00:11]}  Qf7 {[%clk 0:00:13]} 50. Nf3 {[%clk 0:00:11]}  c2 {[%clk 0:00:14]} 51. Rc1 {[%clk 0:00:11]}  Nbc3 {[%clk 0:00:14]} 52. Rxc2 {[%clk 0:00:10]}  Rc8 {[%clk 0:00:11]} 53. Qf4 {[%clk 0:00:10]}  Qxf4 {[%clk 0:00:11]} 54. Nxf4 {[%clk 0:00:11]}  Kf7 {[%clk 0:00:11]} 55. Nh3 {[%clk 0:00:06]}  Rc4 {[%clk 0:00:09]} 56. Nhg5+ {[%clk 0:00:06]}  Ke7 {[%clk 0:00:09]} 57. Nxe4 {[%clk 0:00:05]}  Nxe4 {[%clk 0:00:10]} 58. Rb2 {[%clk 0:00:05]}  Rb4 {[%clk 0:00:10]} 59. Rc2 {[%clk 0:00:05]}  Rc4 {[%clk 0:00:11]} 60. Rb2 {[%clk 0:00:06]}  Rc7 {[%clk 0:00:11]} 61. Rb6 {[%clk 0:00:05]}  Rc2+ {[%clk 0:00:09]} 62. Kg1 {[%clk 0:00:04]}  Rxa2 {[%clk 0:00:09]} 63. Rb7+ {[%clk 0:00:05]}  Kf8 {[%clk 0:00:10]} 64. Nh4 {[%clk 0:00:05]}  Ng3 {[%clk 0:00:08]} 65. Ng6+ {[%clk 0:00:05]}  Ke8 {[%clk 0:00:08]} 66. Re7+ {[%clk 0:00:04]}  Kd8 {[%clk 0:00:09]} 67. Rxe6 {[%clk 0:00:05]}  Ne2+ {[%clk 0:00:09]} 68. Kf1 {[%clk 0:00:05]}  Nxd4 {[%clk 0:00:10]} 69. Rd6+ {[%clk 0:00:05]}  Kc7 {[%clk 0:00:11]} 70. Rxd5 {[%clk 0:00:06]}  Nf3 {[%clk 0:00:11]} 71. e6 {[%clk 0:00:05]}  Nd2+ {[%clk 0:00:07]} 72. Ke1 {[%clk 0:00:04]}  Nf3+ {[%clk 0:00:05]} 73. Kd1 {[%clk 0:00:04]}  Ra1+ {[%clk 0:00:02]} 74. Ke2 {[%clk 0:00:05]}  Re1+ {[%clk 0:00:03]} 75. Kxf3 {[%clk 0:00:05]}  Rxe6 {[%clk 0:00:04]} 76. Rxa5 {[%clk 0:00:05]}  Kb6 {[%clk 0:00:04]} 77. Re5 {[%clk 0:00:04]}  Rc6 {[%clk 0:00:03]} 78. Kg4 {[%clk 0:00:04]}  Rc1 {[%clk 0:00:04]} 79. Kf5 {[%clk 0:00:04]}  Rh1 {[%clk 0:00:04]} 80. Ke6 {[%clk 0:00:04]}  Kc6 {[%clk 0:00:04]} 81. Kf7 {[%clk 0:00:05]}  Kd6 {[%clk 0:00:04]} 82. Kxg7 {[%clk 0:00:05]}  Rg1 {[%clk 0:00:04]} 83. h6 {[%clk 0:00:04]} 1-0


[Site "https://www.chess.com"]

[Event "Titled Tuesday Blitz November 2 2021"]
[White "Erdogdu, Mert"]
[Black "Solon, Nathan"]
[WhiteFideId "6301495"]
[BlackFideId "2017229"]
[WhiteElo "2485"]
[BlackElo "2631"]
[Result "1-0"]
[Round "08"]
[TimeControl "180+1"]
[Date "2021.11.02"]
[WhiteClock "0:00:23"]
[BlackClock "0:00:06"]

1. e4 {[%clk 0:03:00]}  c5 {[%clk 0:02:59]} 2. Nf3 {[%clk 0:02:59]}  d6 {[%clk 0:03:00]} 3. d4 {[%clk 0:02:59]}  cxd4 {[%clk 0:03:01]} 4. Nxd4 {[%clk 0:02:58]}  Nf6 {[%clk 0:03:01]} 5. Nc3 {[%clk 0:02:50]}  a6 {[%clk 0:03:00]} 6. Be3 {[%clk 0:02:49]}  e5 {[%clk 0:03:00]} 7. Nb3 {[%clk 0:02:49]}  Be7 {[%clk 0:02:59]} 8. f3 {[%clk 0:02:48]}  Be6 {[%clk 0:02:59]} 9. Qd2 {[%clk 0:02:48]}  h5 {[%clk 0:02:59]} 10. O-O-O {[%clk 0:02:48]}  Nbd7 {[%clk 0:02:58]} 11. Kb1 {[%clk 0:02:48]}  Rc8 {[%clk 0:02:54]} 12. Bd3 {[%clk 0:02:47]}  b5 {[%clk 0:02:48]} 13. h3 {[%clk 0:02:46]}  h4 {[%clk 0:02:46]} 14. Rhe1 {[%clk 0:02:46]}  Nb6 {[%clk 0:02:35]} 15. Bxb6 {[%clk 0:02:20]}  Qxb6 {[%clk 0:02:36]} 16. Nd5 {[%clk 0:02:17]}  Bxd5 {[%clk 0:02:32]} 17. exd5 {[%clk 0:02:15]}  O-O {[%clk 0:02:25]} 18. f4 {[%clk 0:01:58]}  b4 {[%clk 0:01:58]} 19. fxe5 {[%clk 0:01:46]}  dxe5 {[%clk 0:01:59]} 20. Rxe5 {[%clk 0:01:45]}  Bd6 {[%clk 0:01:59]} 21. Rg5 {[%clk 0:01:40]}  g6 {[%clk 0:01:45]} 22. Bxg6 {[%clk 0:01:22]}  fxg6 {[%clk 0:01:45]} 23. Rxg6+ {[%clk 0:01:22]}  Kf7 {[%clk 0:01:45]} 24. Qh6 {[%clk 0:01:13]}  Qf2 {[%clk 0:00:56]} 25. Rg7+ {[%clk 0:00:52]}  Ke8 {[%clk 0:00:56]} 26. Qg6+ {[%clk 0:00:51]}  Kd8 {[%clk 0:00:54]} 27. Nd4 {[%clk 0:00:44]}  Rc4 {[%clk 0:00:28]} 28. Ne6+ {[%clk 0:00:36]}  Kc8 {[%clk 0:00:29]} 29. Nxf8 {[%clk 0:00:34]}  Bxf8 {[%clk 0:00:30]} 30. Rf7 {[%clk 0:00:32]}  Rd4 {[%clk 0:00:07]} 31. Rxf8+ {[%clk 0:00:29]}  Kb7 {[%clk 0:00:07]} 32. Qf7+ {[%clk 0:00:26]}  Kb6 {[%clk 0:00:06]} 33. Rb8+ {[%clk 0:00:25]}  Ka5 {[%clk 0:00:06]} 34. Qc7+ {[%clk 0:00:23]}  Ka4 {[%clk 0:00:07]} 35. b3+ {[%clk 0:00:23]}  Ka3 {[%clk 0:00:06]} 36. Qa5# {[%clk 0:00:23]} 1-0


[Site "https://www.chess.com"]